fUSD/lending_fUSD_20240329
["ID","MTS","AMOUNT","RATE_DAILY","PERIOD"]
[320906606,1711690231835,-155.72815586,0.00036751,4]
[320906607,1711690231844,-412.51,0.00037454,2]
[320906608,1711690231854,-653.03117945,0.000377,2]
[320906609,1711690231863,-720.40688675,0.00038792,4]
[320906610,1711690231873,-200.0,0.00039279,2]
[320906611,1711690231883,-1264.77,0.00039339,2]
[320906612,1711690231892,-250.0,0.00039422,2]
[320906613,1711690231901,-14584.05,0.00039457,2]
[320906614,1711690231910,-150.0,0.0003951,2]
[320906615,1711690231920,-250.0,0.00039597,2]
[320906616,1711690231929,-173.18,0.00039623,2]
[320906617,1711690231938,-510.08,0.00039688,2]
[320906618,1711690231947,-412.51,0.00039718,2]
[320906619,1711690231956,-1378.93,0.00039728,2]
[320906620,1711690231965,-156.55,0.00040189,2]
[320906621,1711690231974,-156.55,0.00040364,2]
[320906622,1711690231983,-500.0,0.00040433,2]
[320906623,1711690231993,-250.0142,0.00040433,2]
[320906624,1711690232003,-348.1442,0.00040433,2]
[320906626,1711690232012,-156.55,0.00040538,2]
[320906628,1711690232022,-1271.97947638,0.00040583,2]
[320906630,1711690232031,-1610.32469751,0.00040599,4]
[320906632,1711690232040,-1026.08120611,0.00040643,60]
[320906634,1711690232050,-156.55,0.00040713,2]
[320906635,1711690232059,-18133.0813,0.00040736,2]
[320906636,1711690232069,-254.7379,0.00040737,2]
[320906637,1711690232078,-3186.2948,0.00040737,2]
[320906638,1711690232087,-1000.0,0.00040737,2]
[320906639,1711690232097,-699.27250547,0.00040739,2]
[320906640,1711690232106,-171.47635468,0.00040739,2]
[320906641,1711690232115,-179.79754014,0.00040739,2]
[320906642,1711690232124,-302.96003587,0.00040744,2]
[320906643,1711690232133,-486.7099,0.00040745,2]
[320906644,1711690232142,-1407.7401,0.00040745,2]
[320906645,1711690232151,-1597.19744425,0.00040832,4]
[320906646,1711690232161,-581.64558179,0.00040832,4]
[320906647,1711690232170,-155.58912271,0.00040833,4]
[320906648,1711690232179,-31636.02960691,0.00040834,4]
[320906649,1711690232188,-315.0869236,0.00040835,4]
[320906650,1711690232197,-2244.98632184,0.00040835,4]
[320906651,1711690232207,-111387.37147194,0.00040839,2]
[320906652,1711690232217,-252117.50252782,0.00040839,7]
[320906653,1711690232226,-436.15349762,0.00040839,2]
[320906654,1711690232236,-1035.58246488,0.00040839,2]
[320906655,1711690232245,-20624.38478395,0.00040839,2]
[320906656,1711690232255,-2500.0,0.00040839,2]
[320906657,1711690232265,-562.39540065,0.00040839,2]
[320906658,1711690232274,-26985.09473251,0.00040839,2]
[320906659,1711690232283,-2310.23462565,0.00040839,2]
[320906660,1711690232292,-233.64344864,0.00040839,2]
[320906661,1711690232301,-1595.24573562,0.00040839,2]
[320906662,1711690232310,-523.18640626,0.00040839,2]
[320906663,1711690232321,-8058.59768648,0.00040839,2]
[320906664,1711690232330,-34850.99199704,0.00040839,2]
[320906665,1711690232340,-1608.93919681,0.00040844,4]
[320906666,1711690232349,-156.55,0.00040887,2]
[320906667,1711690232369,-156.55,0.00041062,2]
[320906668,1711690232380,-632.99,0.00041075,2]
[320906669,1711690232389,-632.99,0.00041086,2]
[320906670,1711690232399,-632.99,0.00041097,2]
[320906671,1711690232409,-632.99,0.00041108,2]
[320906672,1711690232418,-632.99,0.00041119,2]
[320906673,1711690232428,-632.99,0.0004113,2]
[320906674,1711690232437,-632.99,0.0004114,2]
[320906675,1711690232447,-632.99,0.00041151,2]
[320906676,1711690232456,-632.99,0.00041162,2]
[320906677,1711690232466,-632.99,0.00041173,2]
[320906678,1711690232475,-632.99,0.00041184,2]
[320906679,1711690232484,-632.99,0.00041194,2]
[320906680,1711690232494,-1271.97947638,0.00041203,2]
[320906681,1711690232504,-632.99,0.00041205,2]
[320906682,1711690232513,-632.99,0.00041216,2]
[320906683,1711690232522,-632.99,0.00041227,2]
[320906684,1711690232531,-156.55,0.00041236,2]
[320906685,1711690232541,-632.99,0.00041238,2]
[320906686,1711690232551,-632.99,0.00041249,2]
[320906687,1711690232560,-632.99,0.00041259,2]
[320906688,1711690232570,-632.99,0.0004127,2]
[320906689,1711690232579,-632.99,0.00041281,2]
[320906690,1711690232588,-156.55,0.00041411,2]
[320906691,1711690232597,-156.55,0.00041585,2]
[320906692,1711690232606,-182.55,0.00041758,120]
[320906693,1711690232616,-156.55,0.0004176,2]
[320906694,1711690232626,-156.55,0.00041934,2]
[320906695,1711690232635,-412.51,0.00041982,2]
[320906696,1711690232645,-699.27250542,0.00042081,2]
[320906697,1711690232654,-1000.0,0.00042083,2]
[320906698,1711690232663,-156.55,0.00042109,2]
[320906699,1711690232672,-156.55,0.00042283,2]
[320906700,1711690232681,-510.08,0.00042428,2]
[320906701,1711690232690,-159.0328103,0.00042662,2]
[320906702,1711690232699,-302.9600358,0.00042897,2]
[320906703,1711690232708,-186.75,0.00043283,2]
[320906704,1711690232717,-699.27250542,0.00043424,2]
[320906705,1711690232726,-168.16,0.00043589,2]
[320906706,1711690232735,-166.59,0.00043712,2]
[320906707,1711690232745,-792.92,0.00044006,120]
[320906708,1711690232754,-412.51,0.00044246,2]
[320906709,1711690232763,-699.27250542,0.00044766,2]
[320906710,1711690232772,-4036.8754571,0.000449,2]
[320906711,1711690232781,-322.77607605,0.00045,45]
[320906712,1711690232790,-302.9600358,0.00045051,2]
[320906713,1711690232799,-510.08,0.00045168,2]
[320906714,1711690232809,-699.27250542,0.00046109,2]
[320906715,1711690232818,-152.0,0.00046239,3]
[320906716,1711690232829,-412.51,0.00046509,2]
[320906717,1711690232841,-161.96790787,0.00046834,30]
[320906718,1711690232850,-302.9600358,0.00047204,2]
[320906719,1711690232859,-152.88251695,0.00047321,30]
[320906720,1711690232869,-1000.0,0.00047344,2]
[320906721,1711690232878,-699.27250542,0.00047451,2]
[320906722,1711690232888,-152.88251695,0.0004764,30]
[320906723,1711690232897,-2515.00302676,0.00047852,98]
[320906724,1711690232906,-186.75,0.00047875,2]
[320906725,1711690232916,-8933.52611892,0.00048,4]
[320906726,1711690232925,-600.0,0.00048181,30]
[320906727,1711690232935,-164.83,0.00048198,2]
[320906728,1711690232944,-161.73086742,0.00048253,30]
[320906729,1711690232953,-798.15,0.00048323,120]
[320906730,1711690232962,-250.0,0.00048323,112]
[320906731,1711690232971,-247.6,0.00048323,15]
[320906732,1711690232981,-162.48450733,0.00048391,3]
[320906733,1711690232990,-157.032914,0.00048448,105]
[320906734,1711690232999,-600.0,0.00048455,30]
[320906735,1711690233009,-156.0,0.00048489,7]
[320906736,1711690233018,-200.0,0.00048489,25]
[320906737,1711690233028,-800.0,0.00048489,25]
[320906738,1711690233037,-500.0,0.00048489,30]
[320906739,1711690233046,-200.0,0.00048489,30]
[320906740,1711690233298,-19846.45471817,0.000485,120]
[320906741,1711690233310,-200.0,0.000485,17]
[320906742,1711690233320,-165.02823662,0.00048538,30]
[320906743,1711690233330,-500.0,0.000486,17]
[320906744,1711690233339,-150.0,0.00048613,7]
[320906745,1711690233348,-234.20750389,0.0004862,7]
[320906746,1711690233357,-150.0,0.00048677,7]
[320906747,1711690233366,-2018.787044,0.000487,120]
[320906748,1711690233375,-102478.70390266,0.000487,2]
[320906749,1711690233384,-800.0,0.000487,17]
[320906750,1711690233393,-1064.0,0.000487,117]
[320906751,1711690233402,-600.0,0.00048729,30]
[320906752,1711690233411,-150.0,0.00048769,7]
[320906753,1711690233420,-412.51,0.00048773,2]
[320906754,1711690233429,-212.30177876,0.00048778,7]
[320906755,1711690233439,-1350.53212151,0.0004878,25]
[320906756,1711690233448,-151.80491433,0.0004878,40]
[320906757,1711690233457,-5000.0,0.0004878,2]
[320906758,1711690233466,-159.0328103,0.0004878,2]
[320906759,1711690233476,-171.47635468,0.0004878,2]
[320906760,1711690233485,-699.27250542,0.00048794,2]
[320906761,1711690233494,-2200.0,0.000488,120]
[320906762,1711690233503,-1100.0,0.000488,17]
[320906763,1711690233513,-655.3629293,0.000488,2]
[320906764,1711690233522,-246.27410278,0.000488,2]
[320906765,1711690233531,-388.36758716,0.000488,44]
[320906766,1711690233541,-179.79754014,0.000488,2]
[320906767,1711690233550,-964.50685982,0.000488,2]
[320906768,1711690233561,-559.38540148,0.000488,2]
[320906769,1711690233570,-150.0,0.00048816,7]
[320906770,1711690233579,-166.71056118,0.00048864,30]
[320906771,1711690233588,-37417.5836792,0.0004887,2]
[320906772,1711690233597,-3084.5826579,0.0004887,2]
[320906773,1711690233606,-31074.1825809,0.0004887,2]
[320906774,1711690233615,-253.9797402,0.0004887,2]
[320906775,1711690233623,-192.71637873,0.0004887,2]
[320906776,1711690233632,-9136.4527743,0.0004887,2]
[320906777,1711690233641,-67638.67759427,0.00048879,7]
[320906778,1711690233660,-3517.2,0.00048879,7]
[320906779,1711690233672,-471.07573653,0.00048879,7]
[320906780,1711690233823,-2385.8354731,0.00048879,7]
[320906781,1711690233841,-74944.0,0.00048879,7]
[320906782,1711690233853,-451.5072,0.00048879,7]
[320906783,1711690233865,-449.1466,0.00048879,7]
[320906795,1711690237574,-273.52,0.00048879,7]
[320906796,1711690237586,-503.93824914,0.00048879,7]
[320906797,1711690237629,-1319.05454451,0.00048879,7]
[320906798,1711690237640,-1121.23506837,0.00048879,7]
[320906799,1711690237652,-4396.89544198,0.00048879,7]
[320906800,1711690237684,-927.061008,0.00048879,7]
[320906801,1711690237743,-1738.6710412,0.00048879,7]
[320906802,1711690237754,-994.39745936,0.00048879,7]
[320906803,1711690237800,-385.18211587,0.00048879,7]
[320906804,1711690237860,-639.76622868,0.00048879,7]
[320906805,1711690237919,-51402.76483321,0.00048879,7]
[320906812,1711690239611,-419.0066998,0.00048879,7]
[320906813,1711690239791,-29419.18961104,0.00048879,7]
[320906814,1711690239802,-322.0211737,0.00048879,7]
[320906815,1711690239815,-1022.33754414,0.00048879,7]
[320906816,1711690239837,-34775.3506933,0.00048879,7]
[320906817,1711690239849,-91033.06948872,0.0004888,15]
[320906818,1711690239860,-269.75099589,0.0004888,15]
[320906819,1711690239895,-3600.7172523,0.0004888,15]
[320906820,1711690242270,-2722.23594674,0.0004888,15]
[320906821,1711690242385,-13877.77389802,0.0004888,15]
[320906822,1711690242397,-671.10229479,0.0004888,15]
[320906830,1711690242592,-371.49497149,0.0004888,15]
[320906831,1711690242737,-5946.5193011,0.0004888,15]
[320906832,1711690242794,-3447.57691252,0.0004888,15]
[320906833,1711690242805,-3011.30921338,0.0004888,15]
[320906834,1711690242817,-2991.66009999,0.0004888,15]
[320906835,1711690242903,-325.03064356,0.0004888,15]
[320906836,1711690243076,-409.13752,0.0004888,15]
[320906844,1711690245618,-790.12443875,0.00048879,4]
[320906845,1711690245629,-393.4604411,0.00048879,4]
[320906846,1711690245640,-413.6125644,0.00048879,4]
[320906847,1711690245649,-215.66672092,0.0004888,15]
[320906848,1711690245798,-2127.57608946,0.0004888,15]
[320906849,1711690245810,-514.91083395,0.0004888,15]
[320906850,1711690245824,-3162.58474,0.0004888,15]
[320906851,1711690245856,-922.12073848,0.0004888,15]
[320906852,1711690245916,-82148.68111919,0.0004888,15]
[320906853,1711690245928,-308.69456479,0.0004888,15]
[320906854,1711690245939,-18658.62105794,0.0004888,15]
[320906855,1711690245985,-16464.63930764,0.0004888,15]
[320906856,1711690245997,-8692.4549255,0.0004888,15]
[320906857,1711690246009,-19192.80632286,0.0004888,15]
[320906858,1711690246021,-135982.00251296,0.0004888,15]
[320906865,1711690457788,-1597.19744425,0.00040738,4]
[320906871,1711690531846,-1597.19744425,0.00040738,4]
[320906881,1711691172548,-1597.19744425,0.00040638,4]
[320906882,1711691172570,-3006.9218,0.00040639,2]
[320906883,1711691172591,-2687.1163,0.00040739,2]
[320906884,1711691172613,-150.0,0.00042499,4]
[320906885,1711691172638,-1166.6966,0.000425,2]
[320906886,1711691172661,-49392.06785575,0.000426,2]
[320906887,1711691203139,-561.99262896,0.000426,2]
[320906901,1711691431755,-1022.76352375,0.00040538,4]
[320906902,1711691431769,-574.4339205,0.00040538,4]
[320906903,1711691431778,-3006.9218,0.00040539,2]
[320906904,1711691431788,-205.44770215,0.00042598,4]
[320906905,1711691431797,-201.17271579,0.00042598,4]
[320906906,1711691431807,-253.75395551,0.00042598,4]
[320906907,1711691431816,-200.21690385,0.00042598,4]
[320906908,1711691431826,-163.53190374,0.00042599,4]
[320906909,1711691431836,-496.42417246,0.000426,2]
[320906910,1711691431990,-4223.00590872,0.000426,2]
[320906911,1711691432019,-17737.32333038,0.000426,2]
[320906912,1711691432032,-4537.70684197,0.000426,2]
[320906930,1711691432471,-6717.02152594,0.000426,2]
[320906931,1711691432484,-737.77704635,0.000426,2]
[320906932,1711691432502,-37247.0,0.000426,2]
[320906933,1711691432546,-259.94301548,0.000426,2]
[320906934,1711691432560,-1953.89877888,0.000426,2]
[320906935,1711691432572,-1380.44026994,0.000426,2]
[320906959,1711691437714,-74755.39862517,0.000426,2]
[320906961,1711691437723,-209.78175168,0.00045048,2]
[320906964,1711691437732,-288.75,0.00045148,2]
[320906967,1711691437741,-150.0,0.00045846,2]
[320906970,1711691437750,-209.78175162,0.00045912,2]
[320906972,1711691437759,-209.78175162,0.00046775,2]
[320906975,1711691437769,-182.55,0.00047058,120]
[320906978,1711691437778,-479.54,0.00047061,2]
[320906981,1711691437787,-665.12,0.0004707,120]
[320906984,1711691437796,-232.12,0.000471,15]
[320906986,1711691437805,-250.0,0.00047135,120]
[320906989,1711691437814,-173.18,0.0004716,2]
[320906992,1711691437823,-250.0,0.00047177,112]
[320906994,1711691437833,-1849.36,0.00047197,2]
[320906997,1711691437841,-1000.0,0.00047219,2]
[320906999,1711691437852,-823.68,0.00047331,2]
[320907002,1711691437861,-288.75,0.00047412,2]
[320907004,1711691437871,-660.76,0.00047574,120]
[320907006,1711691437880,-209.78175162,0.00047639,2]
[320907008,1711691437889,-8933.52611892,0.00048,4]
[320907009,1711691437899,-157.67366138,0.00048024,30]
[320907010,1711691437909,-500.0,0.00048181,30]
[320907011,1711691437918,-155.02788135,0.00048278,30]
[320907012,1711691437927,-157.032914,0.00048448,104]
[320907013,1711691437936,-500.0,0.00048455,30]
[320907015,1711691437946,-161.96790787,0.00048474,30]
[320907017,1711691437955,-205.829001,0.00048489,25]
[320907019,1711691437964,-800.0,0.00048489,25]
[320907021,1711691437973,-500.0,0.00048489,30]
[320907022,1711691437982,-200.0,0.00048489,30]
[320907023,1711691437991,-209.78175162,0.00048503,2]
[320907024,1711691438000,-161.96790788,0.00048621,30]
[320907025,1711691438009,-1353.1125,0.0004868,2]
[320907026,1711691438018,-161.50810255,0.000487,13]
[320907027,1711691438027,-500.0,0.00048729,30]
[320907028,1711691438036,-5000.0,0.00048779,5]
[320907029,1711691438045,-1237.98777806,0.0004878,25]
[320907030,1711691438054,-9768.70659572,0.0004878,2]
[320907031,1711691438071,-4779.52265622,0.0004878,2]
[320907032,1711691438090,-2018.10000116,0.0004878,2]
[320907033,1711691438103,-941.83137895,0.0004878,2]
[320907034,1711691438120,-1278.41234917,0.0004878,2]
[320907035,1711691438131,-997.91219634,0.0004878,2]
[320907036,1711691438147,-342.155,0.0004878,2]
[320907037,1711691438181,-86831.39242244,0.0004878,2]
[320907038,1711691438193,-5000.0,0.0004878,2]
[320907039,1711691438202,-151.80491433,0.0004878,40]
[320907040,1711691438211,-164.18273518,0.000488,2]
[320907041,1711691438220,-310.69406972,0.000488,44]
[320907042,1711691438230,-436.90861954,0.000488,2]
[320907043,1711691438239,-7493.01945819,0.000488,2]
[320907044,1711691438248,-643.00457322,0.000488,2]
[320907045,1711691438257,-248262.97905834,0.000488,19]
[320907046,1711691438272,-4823.30170031,0.000488,19]
[320907047,1711691438283,-14380.88516679,0.000488,19]
[320907048,1711691438300,-1527.45830662,0.000488,19]
[320907049,1711691438311,-1302.09636679,0.000488,19]
[320907050,1711691440018,-1129.10829927,0.000488,19]
[320907051,1711691440129,-716.36170073,0.000488,19]
[320907053,1711691442868,-996.70983223,0.00048172,4]
[320907054,1711691442878,-250.0,0.00048173,112]
[320907055,1711691442887,-2433.64616253,0.000488,19]
[320907056,1711691442920,-335.06,0.000488,19]
[320907057,1711691442932,-51808.71313998,0.000488,19]
[320907058,1711691442980,-15242.8395237,0.000488,19]
[320907059,1711691442991,-27558.11076642,0.000488,19]
[320907060,1711691443053,-337.57999999,0.000488,19]
[320907061,1711691443145,-70435.59,0.000488,19]
[320907062,1711691443206,-2992.63876467,0.000488,19]
[320907120,1711691445831,-277.05704041,0.000488,19]
[320907130,1711691460818,-5722.90098726,0.00040537,4]
[320907131,1711691470149,122100.12571391,0.00018,2]
[320907132,1711691640078,65520.09502641,0.0002975,2]
[320907133,1711691644605,-737.0,0.00040849,2]
[320907134,1711691648283,64263.0,0.00040848,4]
[320907135,1711691662509,-11965.2556784,0.00040848,4]
[320907136,1711691670906,3962.57118739,0.000299,2]
[320907141,1711692265795,172.0,0.000354,2]
[320907142,1711692266243,164.0,0.000354,2]
[320907152,1711692560174,-456.47750235,0.00040043,30]
[320907163,1711692632745,-151.81814755,0.00039944,2]
[320907164,1711692632755,-531.27500468,0.00040042,4]
[320907165,1711692632767,-1288.64349942,0.00040042,4]
[320907166,1711692632779,-24.5849962,0.00040042,4]
[320907167,1711692632788,-346.6814705,0.00040044,2]
[320907168,1711692632921,-390.3185295,0.00040044,2]
[320907169,1711692632930,-52.51313574,0.00040146,2]
[320907170,1711692632942,-262.45686426,0.00040146,2]
[320907171,1711692632951,-282.1782915,0.00040445,2]
[320907172,1711692632960,-237.17412781,0.00040649,2]
[320907173,1711692632970,-41.65445256,0.00040748,4]
[320907174,1711692633038,-108.34554744,0.00040748,4]
[320907175,1711692633047,-1940.81586076,0.00040749,4]
[320907176,1711692633059,-2168.75180672,0.00040749,4]
[320907177,1711692633074,-3504.4,0.00040749,4]
[320907178,1711692633087,-675.90859811,0.00040749,4]
[320907179,1711692633097,-499.99,0.00040749,2]
[320907180,1711692633106,-170.69831318,0.00040749,2]
[320907181,1711692633116,-78.28005693,0.0004075,4]
[320907182,1711692633128,-818.3624996,0.0004075,4]
[320907183,1711692633156,-514.8950666,0.0004075,4]
[320907184,1711692633165,-684.52,0.00040839,3]
[320907186,1711692633174,-326.62734868,0.00040846,30]
[320907188,1711692633183,-1985.21307472,0.00040847,2]
[320907210,1711692637994,-1230.88039992,0.00040847,2]
[320907211,1711692638070,-14020.2,0.00040847,2]
[320907225,1711692639969,-576.14886408,0.00040847,2]
[320907226,1711692639981,-61671.89130303,0.00040847,2]
[320907227,1711692639990,-506.10391681,0.00040847,15]
[320907228,1711692639999,-4019.0357295,0.00040847,2]
[320907229,1711692640008,-479.24787887,0.00040847,2]
[320907230,1711692640018,-5194.82908486,0.00040847,2]
[320907231,1711692640027,-37768.92996314,0.00040847,2]
[320907232,1711692640036,-414.84675061,0.00040848,2]
[320907233,1711692640045,-257.80090511,0.00040849,4]
[320907234,1711692640054,-2158.08647882,0.00040849,4]
[320907235,1711692640063,-403.99803161,0.00040849,4]
[320907236,1711692640073,-294.72243506,0.00040849,4]
[320907237,1711692640082,-740.91562396,0.00040849,4]
[320907238,1711692640091,-2345.0082051,0.00040849,4]
[320907239,1711692640101,-4727.14438606,0.00040849,4]
[320907240,1711692640111,-3379.30026567,0.00040849,4]
[320907241,1711692640120,-1023.25239434,0.00040849,60]
[320907242,1711692640130,-256.72185983,0.0004085,4]
[320907243,1711692640140,-303.7994626,0.0004085,4]
[320907244,1711692640149,-376.29834861,0.0004085,4]
[320907245,1711692640159,-792.61777695,0.0004085,4]
[320907246,1711692640168,-278.06273842,0.0004085,4]
[320907247,1711692640178,-200.0,0.0004182,2]
[320907248,1711692640188,-250.0,0.00041851,112]
[320907249,1711692640197,-163.86938743,0.00042,2]
[320907250,1711692640207,-163.86938743,0.00042,2]
[320907251,1711692640216,-163.86938743,0.00042,2]
[320907252,1711692640433,-163.86938743,0.00042,2]
[320907253,1711692640442,-163.86938743,0.00042,2]
[320907254,1711692640452,-163.86938743,0.00042,2]
[320907255,1711692640461,-163.86938743,0.00042,2]
[320907256,1711692640470,-163.86938743,0.00042,2]
[320907257,1711692640479,-163.86938743,0.00042,2]
[320907258,1711692640489,-163.86938743,0.00042,2]
[320907259,1711692640498,-163.86938743,0.00042,2]
[320907260,1711692640507,-163.86938743,0.00042,2]
[320907261,1711692640516,-163.86938743,0.00042,2]
[320907262,1711692640525,-163.86938743,0.00042,2]
[320907264,1711692640534,-163.86938743,0.00042,2]
[320907266,1711692640543,-163.86938743,0.00042,2]
[320907268,1711692640557,-163.86938743,0.00042,2]
[320907269,1711692640566,-163.86938743,0.00042,2]
[320907270,1711692640575,-163.86938743,0.00042,2]
[320907271,1711692640584,-163.86938743,0.00042,2]
[320907272,1711692640594,-163.86938743,0.00042,2]
[320907273,1711692640603,-163.86938743,0.00042,2]
[320907274,1711692640613,-163.86938743,0.00042,2]
[320907275,1711692640622,-163.86938743,0.00042,2]
[320907276,1711692640632,-163.86938743,0.00042,2]
[320907277,1711692640643,-163.86938743,0.00042,2]
[320907278,1711692640652,-163.86938743,0.00042,2]
[320907279,1711692640660,-163.86938743,0.00042,2]
[320907280,1711692640669,-163.86938743,0.00042,2]
[320907281,1711692640679,-163.86938743,0.00042,2]
[320907282,1711692640688,-163.86938743,0.00042,2]
[320907283,1711692640698,-163.86938743,0.00042,2]
[320907284,1711692640706,-163.86938743,0.00042,2]
[320907285,1711692640715,-163.86938743,0.00042,2]
[320907286,1711692640725,-163.86938743,0.00042,2]
[320907287,1711692640734,-163.86938743,0.00042,2]
[320907288,1711692640743,-163.86938743,0.00042,2]
[320907289,1711692640752,-163.86938743,0.00042,2]
[320907290,1711692640761,-163.86938743,0.00042,2]
[320907291,1711692640770,-163.86938743,0.00042,2]
[320907292,1711692640779,-163.86938743,0.00042,2]
[320907293,1711692640788,-299.99,0.00042086,120]
[320907294,1711692640799,-150.99,0.00042086,10]
[320907295,1711692640808,-152.52,0.0004212,2]
[320907296,1711692640817,-314.97,0.0004241,2]
[320907297,1711692640827,-163.86938743,0.00043412,2]
[320907298,1711692640836,-1088.42,0.00043422,2]
[320907299,1711692640846,-566.58,0.00043462,2]
[320907300,1711692640855,-163.86938743,0.00043573,2]
[320907301,1711692640864,-227.25,0.00043583,15]
[320907302,1711692640873,-178.2,0.00043606,120]
[320907303,1711692640887,-216.26956512,0.00044666,2]
[320907304,1711692640896,-314.97,0.00044674,2]
[320907305,1711692640905,-704.08499974,0.00045,30]
[320907306,1711692640915,-163.86938743,0.00045045,2]
[320907307,1711692640925,-800.0,0.00045055,2]
[320907308,1711692640935,-216.26956512,0.00045972,2]
[320907309,1711692640945,-150.23076922,0.00046186,30]
[320907310,1711692640955,-163.86938743,0.00046192,2]
[320907311,1711692640965,-566.58,0.00046202,2]
[320907312,1711692640976,-152.0,0.00046239,3]
[320907313,1711692640985,-227.25,0.00046323,15]
[320907314,1711692640995,-780.759452,0.00046836,30]
[320907315,1711692641005,-163.86938743,0.00046918,2]
[320907316,1711692641015,-554.26,0.00046928,120]
[320907317,1711692641025,-314.97,0.00046937,2]
[320907318,1711692641034,-160.18059643,0.00047246,30]
[320907319,1711692641044,-216.26956512,0.00047277,2]
[320907320,1711692641055,-163.86938743,0.00047411,2]
[320907321,1711692641065,-780.759452,0.00047421,30]
[320907322,1711692641074,-186.75,0.00047599,2]
[320907323,1711692641084,-200.0,0.00047705,2]
[320907324,1711692641093,-203.17973477,0.00047775,2]
[320907325,1711692641103,-163.86938743,0.0004779,2]
[320907326,1711692641113,-163.86938743,0.0004779,2]
[320907327,1711692641122,-163.86938743,0.0004779,2]
[320907328,1711692641134,-163.86938743,0.0004779,2]
[320907329,1711692641143,-163.86938743,0.0004779,2]
[320907330,1711692641152,-163.86938743,0.0004779,2]
[320907331,1711692641161,-163.86938743,0.0004779,2]
[320907332,1711692641170,-163.86938743,0.0004779,2]
[320907333,1711692641179,-163.86938743,0.0004779,2]
[320907334,1711692641189,-12683.98845819,0.000478,10]
[320907335,1711692641198,-163.86938743,0.00047855,2]
[320907336,1711692641207,-163.86938743,0.00047855,2]
[320907337,1711692641216,-163.86938743,0.00047856,2]
[320907338,1711692641225,-163.86938743,0.00047865,2]
[320907339,1711692641234,-163.86938743,0.00047865,2]
[320907340,1711692641244,-163.86938743,0.00047865,2]
[320907341,1711692641254,-163.86938743,0.00047865,2]
[320907342,1711692641264,-163.86938743,0.00047865,2]
[320907343,1711692641273,-163.86938743,0.00047865,2]
[320907344,1711692641282,-163.86938743,0.00047865,2]
[320907345,1711692641291,-163.86938743,0.00047865,2]
[320907346,1711692641300,-163.86938743,0.00047865,2]
[320907347,1711692641311,-163.86938743,0.00047865,2]
[320907348,1711692641321,-163.86938743,0.00047865,2]
[320907349,1711692641331,-163.86938743,0.00047865,2]
[320907350,1711692641341,-163.86938743,0.00047865,2]
[320907351,1711692641350,-163.86938743,0.00047865,2]
[320907352,1711692641359,-163.86938743,0.00047865,2]
[320907353,1711692641369,-163.86938743,0.00047865,2]
[320907354,1711692641378,-163.86938743,0.00047865,2]
[320907355,1711692641388,-163.86938743,0.00047865,2]
[320907356,1711692641397,-163.86938743,0.00047865,2]
[320907357,1711692641406,-163.86938743,0.00047865,2]
[320907358,1711692641415,-163.86938743,0.00047865,2]
[320907359,1711692641425,-163.86938743,0.00047865,2]
[320907360,1711692641434,-163.86938743,0.00047865,2]
[320907361,1711692641443,-163.86938743,0.00047865,2]
[320907362,1711692641452,-163.86938743,0.00047865,2]
[320907363,1711692641462,-163.86938743,0.00047865,2]
[320907364,1711692641471,-163.86938743,0.00047865,2]
[320907365,1711692641480,-163.86938743,0.00047865,2]
[320907366,1711692641489,-163.86938743,0.00047865,2]
[320907367,1711692641498,-163.86938743,0.00047865,2]
[320907368,1711692641507,-163.86938743,0.00047865,2]
[320907369,1711692641516,-163.86938743,0.00047865,2]
[320907370,1711692641525,-163.86938743,0.00047865,2]
[320907371,1711692641535,-163.86938743,0.00047865,2]
[320907372,1711692641544,-163.86938743,0.00047865,2]
[320907373,1711692641554,-163.86938743,0.00047865,2]
[320907374,1711692641567,-163.86938743,0.00047865,2]
[320907375,1711692641575,-163.86938743,0.00047865,2]
[320907376,1711692641585,-152.88251695,0.00047866,30]
[320907377,1711692641594,-57968.97236908,0.00047875,5]